[Event "44th Chess Olympiad Open 2022"]
[Site "Chennai"]
[Date "2022.08.08"]
[Round "10.35"]
[White "Petkov, Momchil"]
[Black "Croad, Nicolas"]
[Result "1-0"]
[ECO "C54"]
[WhiteElo "2510"]
[BlackElo "2289"]
[Annotator "TA"]
[PlyCount "81"]
[EventDate "2022.07.29"]
[EventType "team-tourn"]
[EventCountry "IND"]
[SourceTitle "playchess.com"]
[Source "ChessBase"]
[SourceQuality "1"]
[WhiteTeam "Bulgaria"]
[BlackTeam "New Zealand"]
[WhiteTeamCountry "BUL"]
[BlackTeamCountry "NZL"]
[TimeControl "40/5400+30:1800+30"]

{[%evp 10,81,18,23,23,20,25,20,41,30,34,22,42,35,48,0,58,55,51,17,25,-18,21,23,25,14,27,0,34,34,34,36,33,33,34,16,13,5,65,43,65,59,69,0,56,40,110,97,100,14,16,0,0,0,0,0,0,0,0,0,0,0,0,0,168,178,182,164,185,169,160,168,806,782]} 1. e4 {[%emt 0:00:10]} e5 {[%emt 0:00:07]} 2. Nf3 {[%emt 0:00:15]} Nc6 {[%emt 0:00:06]} 3. Bc4 {[%emt 0:00:06]} Bc5 {[%emt 0:00:07]} 4. O-O {[%emt 0:00:21]} Nf6 {[%emt 0:00:14]} 5. d3 {[%emt 0:00:07]} d6 {[%emt 0:00:29]} 6. c3 {[%emt 0:00:24]} a5 {[%emt 0:06:03] C54: Giuoco Piano: 4 c3 Nf6, main lines with 5 d4 and 5 d3.} 7. Bg5 {[%emt 0:00:26]} h6 {[%emt 0:00:16]} 8. Bh4 {[%emt 0:00:05]} Ba7 {[%emt 0:06:09] The position is equal.} 9. Nbd2 {[%emt 0:00:28]} O-O {[%emt 0:01:45]} 10. a4 {[%emt 0:01:08]} Qe7 {[%emt 0:03:07]} 11. Re1 {[%emt 0:08:56]} Be6 {[%emt 0:03:47] [#]} 12. Ra3 $146 {[%emt 0:03:31]} (12. Bb5 $14) ({Predecessor:} 12. Bb5 g5 13. Nxg5 hxg5 14. Bxg5 Kg7 15. d4 Rg8 16. Qf3 Bd7 17. Nf1 Kg6 18. h4 {1-0 (61) Robson,R (2670)-Rosen,E (2382) Saint Louis 2016}) 12... Nb8 {[%emt 0:06:43]} (12... g5 $11 13. Bg3 Bc5) 13. d4 $14 {[%emt 0:05:28]} Nbd7 {[%emt 0:01:44]} 14. Bd3 {[%emt 0:10:20]} c6 {[%emt 0:02:23]} 15. Nc4 {[%emt 0:08:20]} Bxc4 {[%emt 0:10:45]} (15... g5 $5 {[%cal Rg5h4]} 16. Bg3 {[#]} Nxe4 $1 $11) 16. Bxc4 {[%emt 0:00:08]} Rfe8 {[%emt 0:02:02]} 17. Ba2 {[%emt 0:14:37]} Nf8 {[%emt 0:02:45]} 18. Bg3 {[%emt 0:03:17]} Ng6 {[%emt 0:00:44]} 19. Nh4 {[%emt 0:01:55]} Nxh4 {[%emt 0:01:41]} 20. Bxh4 {[%emt 0:00:12]} g5 {[%emt 0:02:10]} 21. Bg3 {[%emt 0:00:05]} Kg7 {[%emt 0:00:26]} 22. Re3 {[%emt 0:12:28]} h5 {[%emt 0:25:52] [#] Strongly threatening ...h4.} 23. h4 {[%emt 0:10:27]} g4 {[%emt 0:03:26]} (23... Ng4 $1 $11 24. Rf3 Nh6) 24. Bb1 {[%emt 0:03:07]} Rg8 {[%emt 0:02:19]} 25. Qd2 {[%emt 0:02:33]} Nd7 {[%emt 0:01:01]} 26. f4 {[%emt 0:02:09]} (26. Bc2 $14) 26... f6 {[%emt 0:09:37]} (26... c5 $11) 27. Kh1 {[%emt 0:01:48]} Rgd8 {[%emt 0:01:55]} ({Black should play} 27... c5 $14) 28. Re1 $16 {[%emt 0:01:13]} c5 {[%emt 0:01:21][%cal Rc5d4]} 29. Rb3 {[%emt 0:06:37]} (29. fxe5 $16 dxe5 30. d5) 29... cxd4 $11 {[%emt 0:00:47]} 30. Rxb7 {[%emt 0:00:06]} Rdb8 {[%emt 0:00:15]} 31. Rxb8 {[%emt 0:01:44]} Rxb8 {[%emt 0:00:10]} 32. Ba2 {[%emt 0:00:13]} Nc5 {[%emt 0:02:29][%cal Bd7c5,Bc5b3,Bb3d4][%mdl 32]} 33. cxd4 {[%emt 0:00:29]} Nb3 {[%emt 0:00:11]} 34. Qd3 {[%emt 0:01:51]} Nxd4 {[%emt 0:00:11]} 35. Qc4 {[%emt 0:00:05]} Kh6 {[%emt 0:02:41]} 36. fxe5 {[%emt 0:00:28]} fxe5 {[%emt 0:00:47]} (36... dxe5 $11 {and Black is okay.} 37. Rf1 Rb4) 37. Rf1 $18 {[%emt 0:01:28] Threatens to win with Rf7.} Rf8 {[%emt 0:00:18]} 38. Rxf8 {[%emt 0:00:35]} Qxf8 {[%emt 0:00:01]} 39. Qc1+ {[%emt 0:00:05]} Kh7 {[%emt 0:01:58] Hoping for ...Ne2.} 40. Qc7+ {[%emt 0:00:06]} Qg7 $2 {[%emt 0:01:06]} (40... Kh6 41. Bc4 (41. Qxa7 Qf1+ 42. Kh2 Nf3+ 43. gxf3 Qh3+ 44. Kg1 Qxg3+ 45. Kf1 Qh3+ 46. Kg1 Qg3+ 47. Kf1 Qh3+ 48. Ke2 Qxf3+ 49. Kd2 Qg2+ 50. Kd3 Qf1+ 51. Kd2 Qg2+ 52. Kd3 Qf1+ 53. Kd2 Qg2+ $11) 41... Bc5 42. Qxa5 Nc2 43. Qd2+ Ne3) 41. Qxd6 {[%emt 0:30:12] Weighted Error Value: White=0.14 (very precise) /Black=0.25 (precise)} 1-0

[Event "44th Chess Olympiad Open 2022"]
[Site "Chennai"]
[Date "2022.08.08"]
[Round "10.36"]
[White "Nassr, Ali"]
[Black "Kantans, Toms"]
[Result "0-1"]
[ECO "A48"]
[WhiteElo "2263"]
[BlackElo "2486"]
[Annotator "TA"]
[PlyCount "132"]
[EventDate "2022.07.29"]
[EventType "team-tourn"]
[EventCountry "IND"]
[SourceTitle "playchess.com"]
[Source "ChessBase"]
[SourceQuality "1"]
[WhiteTeam "Algeria"]
[BlackTeam "Latvia"]
[WhiteTeamCountry "ALG"]
[BlackTeamCountry "LAT"]
[TimeControl "40/5400+30:1800+30"]

{[%evp 15,132,0,0,0,18,-3,4,-6,-6,-22,-11,0,-11,-40,0,-60,-52,-41,-47,-76,-65,-70,-66,-72,-51,-66,-60,-69,-56,-119,-114,-126,-127,-122,-123,-113,-96,-143,-139,-145,-145,-145,-145,-146,-117,-95,-96,-99,-6,-4,-5,-8,-7,-5,-2,-8,-8,-5,-13,-37,-30,-50,-57,-56,-18,-96,-93,-87,-90,-183,-60,-88,-104,-198,-181,-250,-243,-270,-248,-275,-266,-265,-262,-300,-300,-300,-298,-658,-630,-617,-610,-541,-532,-452,-420,-631,-597,-658,-658,-838,-792,-661,-661,-1189,-948,-1941,-1470,-1852,-1740,-1814,-2135,-1772,-1837,-5536,-4731,-5479,-5073,-29968,-4627]} 1. d4 {[%emt 0:00:04]} Nf6 {[%emt 0:00:08]} 2. Bf4 {[%emt 0:00:22]} g6 {[%emt 0:00:23]} 3. Nf3 {[%emt 0:00:15]} Bg7 {[%emt 0:00:07]} 4. e3 {[%emt 0:00:21][%cal Be2e3,Be3d4][%mdl 32]} d6 {[%emt 0:00:07]} 5. h3 {[%emt 0:00:26]} O-O {[%emt 0:00:08]} 6. Be2 {[%emt 0:00:29]} c5 {[%emt 0:01:12]} 7. c3 {[%emt 0:00:41]} cxd4 {[%emt 0:00:43]} 8. exd4 {[%emt 0:00:58]} Qb6 {[%emt 0:00:07]} 9. Qb3 {[%emt 0:01:58] A48: 1 d4 Nf6 2 Nf3 g6: Torre, London and Colle Systems.} Qc7 {[%emt 0:00:07]} 10. O-O {[%emt 0:01:54]} Nc6 {[%emt 0:00:07]} 11. Nbd2 {[%emt 0:03:15] The position is equal.} e5 {[%emt 0:05:02]} 12. dxe5 {[%emt 0:01:49]} dxe5 {[%emt 0:00:08]} 13. Bh2 {[%emt 0:01:31]} Be6 {[%emt 0:00:14]} 14. Qa4 {[%emt 0:00:32]} a6 {[%emt 0:00:31]} 15. Ne4 {[%emt 0:09:51]} (15. Rad1 $11) 15... Nxe4 $15 {[%emt 0:00:36]} 16. Qxe4 {[%emt 0:00:07]} f5 {[%emt 0:00:19]} 17. Qc2 {[%emt 0:00:54] [#]} Bf6 $146 {[%emt 0:01:11] Against Ng5} ({Predecessor:} 17... h6 18. Rfe1 Qf7 19. Nd2 Rfd8 20. b3 b5 21. a4 Rac8 22. axb5 axb5 23. Bf1 e4 24. Rac1 Nb4 25. Qb2 Nd3 26. Bxd3 Rxd3 {0-1 (26) Nassr,A (2232)-Howell,D (2640) Chess.com INT 2020}) 18. Rfe1 {[%emt 0:03:46]} Rac8 {[%emt 0:05:40]} 19. Qa4 {[%emt 0:07:14]} Qf7 {[%emt 0:05:12]} 20. Nd2 {[%emt 0:07:35]} Rfd8 {[%emt 0:14:21]} 21. Rad1 {[%emt 0:03:44]} e4 {[%emt 0:07:20]} (21... Bxa2 $2 22. b3 Bxb3 23. Qxb3 (23. Nxb3 Kg7 $18) 23... Qxb3 24. Nxb3 $16) 22. Bc4 {[%emt 0:03:28]} ({White should play} 22. Bf1 $15) 22... Bxc4 $1 $17 {[%emt 0:00:41]} 23. Qxc4 {[%emt 0:00:14]} b5 {[%emt 0:00:05]} 24. Qxf7+ {[%emt 0:17:37]} Kxf7 {[%emt 0:00:36]} 25. Bf4 {[%emt 0:00:47]} g5 {[%emt 0:06:27]} 26. Bh2 {[%emt 0:01:36]} (26. Be3 $142) 26... b4 $1 {[%emt 0:10:30]} 27. Nc4 {[%emt 0:01:57]} bxc3 {[%emt 0:00:07]} ({And not} 27... Rxd1 28. Rxd1 Rd8 29. Rxd8 Bxd8 30. Ne5+ Nxe5 31. Bxe5 $15) 28. bxc3 {[%emt 0:06:38]} Bxc3 {[%emt 0:00:23]} 29. Rf1 {[%emt 0:03:16]} Bb4 {[%emt 0:03:22]} 30. Rb1 {[%emt 0:05:21]} f4 {[%emt 0:08:55]} 31. g3 {[%emt 0:00:54]} Rd3 {[%emt 0:11:49] Black is more active.} (31... f3 $17 {And now ...Bc5 would win.} 32. g4 Bc5) 32. gxf4 $11 {[%emt 0:02:02]} gxf4 {[%emt 0:00:45]} (32... Rxh3 $2 33. Rxb4 $1 {[%mdl 512]} Nxb4 34. Nd6+ Ke6 35. Nxc8 $18) 33. Bxf4 {[%emt 0:01:33]} Rxh3 {[%emt 0:01:37]} 34. Bg3 {[%emt 0:02:44][%cal Ob1b4] Black must now prevent Rxb4!} Rh6 {[%emt 0:02:28]} 35. Rfc1 {[%emt 0:04:56][%cal Ob1b4]} Rg8 $36 {[%emt 0:07:25][%mdl 2048] White is under pressure.} 36. Kg2 {[%emt 0:02:40]} Re6 {[%emt 0:01:13]} 37. a3 {[%emt 0:02:08]} Be7 {[%emt 0:00:21]} 38. Rb6 {[%emt 0:01:16][%cal Ob6c6]} Nd4 {[%emt 0:01:58] Hoping for ...Rxb6.} 39. Rxe6 {[%emt 0:00:47]} Nxe6 {[%emt 0:00:29]} 40. Ne5+ {[%emt 0:00:39]} (40. Kf1 $11 {remains equal.}) 40... Kf6 $17 {[%emt 0:00:07]} 41. Nd7+ {[%emt 0:03:52]} Kf5 {[%emt 0:00:59]} 42. Rc6 {[%emt 0:13:33]} (42. Rh1 $17) 42... a5 {[%emt 0:02:04]} (42... Bxa3 43. Rxa6 Bb4 44. Rb6 $17) (42... Nf4+ $1 $19 43. Kh2 Rg6 44. Rxg6 hxg6) 43. Ra6 {[%emt 0:00:46]} Bd8 $1 {[%emt 0:00:06]} 44. Rc6 {[%emt 0:01:48]} (44. Kf1 $17) 44... Bc7 $19 {[%emt 0:09:57][%cal Oe4e3]} 45. Nc5 {[%emt 0:01:19]} (45. Rc4 $142) 45... Bxg3 {[%emt 0:00:08]} 46. fxg3 {[%emt 0:00:15][%mdl 4096] Endgame KRN-KRN} Nf4+ {[%emt 0:01:34]} 47. Kf2 {[%emt 0:02:25] [#]} e3+ $1 {[%emt 0:05:42]} 48. Kxe3 {[%emt 0:00:21]} Rxg3+ {[%emt 0:00:06]} 49. Kd2 {[%emt 0:00:41] [#]} h5 $1 {[%emt 0:00:43]} ({Weaker is} 49... Rxa3 50. Rh6 $17) 50. Rh6 {[%emt 0:03:43]} Rxa3 {[%emt 0:00:27]} 51. Ke1 $2 {[%emt 0:01:30]} (51. Rh8) 51... Rc3 {[%emt 0:02:11]} 52. Na4 {[%emt 0:00:22]} Rc4 {[%emt 0:01:02]} 53. Nb2 {[%emt 0:00:11]} Rb4 {[%emt 0:01:07]} 54. Nd1 {[%emt 0:00:22]} a4 {[%emt 0:02:55]} 55. Ra6 {[%emt 0:00:30]} (55. Kd2 $142) 55... h4 {[%emt 0:01:15][%cal Bh5h4,Bh4h3][%mdl 32]} 56. Kf2 {[%emt 0:01:39]} Nd5 {[%emt 0:07:04]} 57. Ra5 {[%emt 0:04:20]} Ke4 {[%emt 0:00:22] Strongly threatening ...Rd4.} 58. Ra8 {[%emt 0:00:31]} h3 {[%emt 0:04:47]} 59. Kg3 {[%emt 0:00:43]} Rb3+ {[%emt 0:00:06]} 60. Kh2 {[%emt 0:00:07]} Nb6 {[%emt 0:01:00]} 61. Re8+ {[%emt 0:00:58]} Kd4 {[%emt 0:00:12] ...a3 is the strong threat.} 62. Rd8+ {[%emt 0:00:27]} Kc4 {[%emt 0:00:37]} 63. Re8 {[%emt 0:01:27]} a3 {[%emt 0:00:19] aiming for ...a2.} 64. Re2 {[%emt 0:00:31]} Nd5 {[%emt 0:00:38] Threatens to win with ...Nc3.} 65. Rc2+ {[%emt 0:00:46]} Kb4 {[%emt 0:00:47] ( -> ...Ne3)} 66. Rd2 {[%emt 0:00:14]} Ne3 {[%emt 0:00:39] Weighted Error Value: White=0.35/Black=0.09 (flawless)} 0-1

[Event "44th Chess Olympiad Open 2022"]
[Site "Chennai"]
[Date "2022.08.08"]
[Round "10.43"]
[White "Kaloust, Giorgio"]
[Black "Hernandez Guerrero, Gilberto"]
[Result "0-1"]
[ECO "E69"]
[WhiteElo "1942"]
[BlackElo "2560"]
[Annotator "TA"]
[PlyCount "104"]
[EventDate "2022.07.29"]
[EventType "team-tourn"]
[EventCountry "IND"]
[SourceTitle "playchess.com"]
[Source "ChessBase"]
[SourceQuality "1"]
[WhiteTeam "Lebanon"]
[BlackTeam "Mexico"]
[WhiteTeamCountry "LBN"]
[BlackTeamCountry "MEX"]
[TimeControl "40/5400+30:1800+30"]

{[%evp 20,104,26,17,27,20,9,-14,0,-17,-6,-14,0,-19,-9,-22,-13,-17,0,0,3,17,41,-3,-6,-22,-18,-22,-31,-55,-54,-67,-41,-97,-77,-83,-83,-93,-87,-93,-73,-100,-93,-101,-102,-100,-100,-158,0,-110,-95,-160,-139,-149,-102,-135,0,-155,-109,-109,-109,-110,-105,-122,-43,-56,-50,-66,-34,-41,-16,-29,-29,-153,-133,-262,-249,-381,-372,-368,-370,-290,-318,-457,-435,-449,-431]} 1. d4 {[%emt 0:00:03]} Nf6 {[%emt 0:00:09]} 2. c4 {[%emt 0:00:12]} g6 {[%emt 0:00:15]} 3. Nf3 {[%emt 0:00:17]} Bg7 {[%emt 0:00:09]} 4. g3 {[%emt 0:00:22]} O-O {[%emt 0:00:20]} 5. Bg2 {[%emt 0:00:05]} d6 {[%emt 0:00:24]} 6. O-O {[%emt 0:00:22]} Nbd7 {[%emt 0:01:29]} 7. Nc3 {[%emt 0:00:26]} e5 {[%emt 0:00:10]} 8. e4 {[%emt 0:00:25]} c6 {[%emt 0:00:27]} 9. h3 {[%emt 0:02:33]} Qb6 {[%emt 0:01:16]} 10. dxe5 {[%emt 0:03:42]} dxe5 {[%emt 0:00:50]} 11. Qe2 {[%emt 0:03:20]} Qb4 $5 {[%emt 0:05:21][%mdl 4] An interesting side line. E69: King's Indian: Fianchetto: 6...Nbd7 7 0-0 e5 8 e4 c6 9 h3.} 12. Be3 {[%emt 0:10:34]} Qe7 {[%emt 0:00:39] [#]} 13. Nd2 $146 {[%emt 0:04:57]} ({Predecessor:} 13. Qc2 Ne8 14. Rad1 Nc7 15. Rfe1 Ne6 16. a3 f5 17. exf5 gxf5 18. Nh4 e4 19. f4 Ndc5 20. Bf1 a5 21. Qf2 Nb3 22. Na4 {½-½ (22) Szekely,P (2455)-Iuldachev,S (2555) Dhaka 1997}) 13... Nc5 {[%emt 0:07:06] The position is equal.} 14. Rfd1 {[%emt 0:14:43]} Nfd7 {[%emt 0:04:09]} 15. Nb3 {[%emt 0:05:40]} Ne6 {[%emt 0:02:57]} 16. Rd3 {[%emt 0:14:51]} Ndc5 {[%emt 0:07:13]} 17. Nxc5 {[%emt 0:00:36]} Nxc5 {[%emt 0:00:07]} 18. Rd2 {[%emt 0:04:03]} Re8 {[%emt 0:14:16]} 19. Rad1 {[%emt 0:05:06]} a5 {[%emt 0:02:50]} 20. b3 {[%emt 0:01:11]} Rb8 {[%emt 0:05:52]} 21. Bxc5 {[%emt 0:06:23]} Qxc5 {[%emt 0:00:10]} 22. Rd8 {[%emt 0:02:44]} Be6 {[%emt 0:00:50]} 23. Rxb8 {[%emt 0:01:05]} Rxb8 {[%emt 0:00:06]} 24. Na4 {[%emt 0:00:44]} Qb4 {[%emt 0:05:04]} 25. Qd2 {[%emt 0:07:15]} Bf8 {[%emt 0:00:44]} 26. Qxb4 {[%emt 0:01:45]} (26. Qb2 $15) 26... Bxb4 {[%emt 0:00:15]} 27. c5 {[%emt 0:04:46]} Kf8 {[%emt 0:03:12]} 28. Kf1 {[%emt 0:01:50]} Ke7 {[%emt 0:00:16]} 29. Ke2 {[%emt 0:00:33]} f5 {[%emt 0:00:39]} 30. f3 {[%emt 0:01:04]} Rf8 {[%emt 0:05:49]} 31. Rf1 {[%emt 0:00:40]} h5 {[%emt 0:00:36][%cal Oh5h4]} 32. Rd1 {[%emt 0:01:13]} Ba3 {[%emt 0:03:34]} 33. Rf1 {[%emt 0:00:43] [#]} (33. Bf1 $142) 33... Bb4 {[%emt 0:10:54] This bishop pair is nice.} (33... h4 $142 $1 {[%cal Rh4g3]} 34. g4 Rd8) 34. Rd1 $17 {[%emt 0:00:25]} g5 {[%emt 0:00:34]} 35. Rf1 {[%emt 0:00:55]} ({White should play} 35. Ra1) 35... Rd8 {[%emt 0:05:57]} 36. Rd1 {[%emt 0:00:27] Prevents Rd2+.} Rg8 {[%emt 0:01:06]} (36... fxe4 $142 37. fxe4 Rd4 38. Rxd4 exd4) 37. Rh1 {[%emt 0:00:45]} Rd8 {[%emt 0:00:55] [#] ...Rd2+ is the strong threat.} 38. Rd1 {[%emt 0:00:01] Prevents Rd2+.} Rxd1 {[%emt 0:00:12]} (38... fxe4 $142 39. fxe4 Rd4 40. Rxd4 exd4) 39. Kxd1 {[%emt 0:00:05][%mdl 4096] Endgame KBB-KBN} g4 {[%emt 0:00:06]} 40. fxg4 {[%emt 0:01:24]} hxg4 {[%emt 0:00:49] Strongly threatening ...f4.} ({Not} 40... fxg4 41. h4 $15) 41. hxg4 {[%emt 0:10:28]} fxe4 {[%emt 0:00:47]} ({Weaker is} 41... fxg4 42. Bf1 $15) ({Better is} 41... f4 $17 42. Ke2 Bxg4+ 43. Bf3 Be6) 42. Bxe4 $15 {[%emt 0:00:03]} Bxg4+ {[%emt 0:00:35]} 43. Kc2 {[%emt 0:00:44]} Ke6 {[%emt 0:04:22]} 44. Kd3 {[%emt 0:03:36]} Be1 {[%emt 0:03:23]} 45. Nb6 {[%emt 0:05:24]} Bxg3 {[%emt 0:01:52]} 46. Kd2 {[%emt 0:03:38]} (46. Nc4 $11 {remains equal.}) 46... Bf2 $17 {[%emt 0:00:33]} 47. Na4 {[%emt 0:01:28]} (47. Nc4 $17) 47... Bd4 {[%emt 0:01:33]} 48. a3 {[%emt 0:01:59]} (48. Kd3 $142) 48... Kf6 $19 {[%emt 0:01:51]} 49. b4 {[%emt 0:01:02]} axb4 {[%emt 0:00:34]} 50. axb4 {[%emt 0:00:02]} Kg5 {[%emt 0:00:11]} 51. Nb6 {[%emt 0:02:47]} (51. Bd3 {was called for.}) 51... Kf4 {[%emt 0:00:13]} 52. Kd3 {[%emt 0:01:14]} Bh3 {[%emt 0:00:34] Weighted Error Value: White=0.26 (precise) /Black=0.17 (very precise)} 0-1

[Event "44th Chess Olympiad Open 2022"]
[Site "Chennai"]
[Date "2022.08.08"]
[Round "10.52"]
[White "Darmanin, Jake"]
[Black "Ziska, Helgi Dam"]
[Result "0-1"]
[ECO "B50"]
[WhiteElo "2101"]
[BlackElo "2549"]
[Annotator "TA"]
[PlyCount "84"]
[EventDate "2022.07.29"]
[EventType "team-tourn"]
[EventCountry "IND"]
[SourceTitle "playchess.com"]
[Source "ChessBase"]
[SourceQuality "1"]
[WhiteTeam "Malta"]
[BlackTeam "Faroe Islands"]
[WhiteTeamCountry "MLT"]
[BlackTeamCountry "FAI"]
[TimeControl "40/5400+30:1800+30"]

{[%evp 23,84,9,10,-14,0,-7,0,-6,0,0,0,0,0,-24,-24,-41,-41,-41,-15,-18,-4,-8,-8,-10,0,-14,-13,-53,-54,-127,-127,-127,-39,-35,-41,-422,-223,-225,-198,-198,-50,-26,-25,-110,-120,-293,-294,-302,-302,-304,-300,-259,-226,-604,-579,-993,-822,-1023,-969,-1154,-1038,-1120,-829]} 1. e4 {[%emt 0:00:06]} c5 {[%emt 0:00:09]} 2. Nf3 {[%emt 0:00:08]} d6 {[%emt 0:00:11]} 3. c3 {[%emt 0:00:14]} Nf6 {[%emt 0:00:31]} 4. h3 {[%emt 0:00:12]} g6 {[%emt 0:00:37]} 5. Bd3 {[%emt 0:01:31]} Bg7 {[%emt 0:00:50]} 6. O-O {[%emt 0:00:34]} O-O {[%emt 0:00:17]} 7. Bc2 {[%emt 0:00:17]} e5 {[%emt 0:01:19]} 8. d4 {[%emt 0:00:53]} exd4 {[%emt 0:01:00]} 9. cxd4 {[%emt 0:00:05]} Nc6 {[%emt 0:00:08]} 10. Nc3 {[%emt 0:05:15]} cxd4 {[%emt 0:01:21]} 11. Nxd4 {[%emt 0:00:19]} d5 {[%emt 0:00:18]} 12. Nxc6 {[%emt 0:15:03]} bxc6 {[%emt 0:00:09][%cal Bb7c6,Bc6d5,Bd5c4,Bc4c3][%mdl 32]} 13. exd5 {[%emt 0:03:51] B50: Sicilian: 2...d6, Miscellaneous.} Nxd5 {[%emt 0:00:43]} 14. Nxd5 {[%emt 0:06:29]} cxd5 {[%emt 0:01:15]} 15. Rb1 {[%emt 0:08:27] [#] The position is equal.} Rb8 $146 {[%emt 0:15:21]} ({Predecessor:} 15... Bb7 16. Qf3 Rc8 17. Bd3 Qe7 18. Bf4 Rfe8 19. Bb5 Red8 20. Qg3 Qb4 21. Bd3 Re8 {0-1 (48) Makarov,M (2512)-Sjugirov,S (2635) St Petersburg 2013}) 16. b4 {[%emt 0:04:07]} Ba6 {[%emt 0:09:58]} 17. Bd3 {[%emt 0:06:39]} Bc4 {[%emt 0:04:16]} 18. Bxc4 {[%emt 0:02:59]} dxc4 {[%emt 0:00:07]} 19. Qc2 {[%emt 0:00:10]} c3 {[%emt 0:02:04]} 20. Be3 {[%emt 0:02:18]} Qh4 {[%emt 0:03:30]} 21. b5 $1 {[%emt 0:07:00]} Qc4 $36 {[%emt 0:02:23][%mdl 2048] Black has good play.} 22. a4 {[%emt 0:01:34]} Rb7 {[%emt 0:00:16]} 23. Rfd1 {[%emt 0:03:16]} Re8 {[%emt 0:09:42]} 24. Rd3 {[%emt 0:04:44]} h5 {[%emt 0:01:34]} 25. Rbd1 {[%emt 0:02:31]} Re4 {[%emt 0:01:55]} 26. Ra1 {[%emt 0:08:53]} (26. Rd8+ $15 Kh7 27. R1d7 Rxd7 28. Rxd7) 26... Kh7 $17 {[%emt 0:00:33]} 27. Rd6 {[%emt 0:08:04]} Rbe7 {[%emt 0:04:26]} ({Black should try} 27... Rc7 $17 28. a5 {[#]} Rxe3 $1 29. fxe3 Qxb5) 28. Rc6 $15 {[%emt 0:00:49]} Qb4 {[%emt 0:00:45]} 29. Ra6 $2 {[%emt 0:02:38][%mdl 8192]} (29. Qd3 $1 $15) 29... Bd4 {[%emt 0:05:31]} (29... Rxe3 $142 30. fxe3 Rxe3) 30. Rb1 {[%emt 0:01:38]} Qc5 {[%emt 0:00:14]} 31. Rc6 {[%emt 0:00:21]} Qf5 {[%emt 0:00:15]} (31... Qd5 $19 32. Rxc3 (32. Rd1 $2 Rxe3 33. fxe3 Rxe3 $19) 32... Bxc3 33. Qxc3 Rxa4) 32. Rf1 {[%emt 0:01:42]} Bg7 {[%emt 0:01:30]} 33. Bc5 {[%emt 0:01:29]} (33. Qb3 $11 {keeps the balance.}) 33... Rd7 $17 {[%emt 0:01:12] Black is more active.} 34. f3 $2 {[%emt 0:00:22]} (34. Be3 $17) 34... Rc4 $19 {[%emt 0:00:41][%csl LRc2,LRc5][%cal Be4c4,Bc4a4,Ba4a2][%mdl 32]} 35. Qxf5 {[%emt 0:00:40]} gxf5 {[%emt 0:00:01]} 36. Be3 {[%emt 0:01:44]} Rxa4 {[%emt 0:07:07] Hoping for ...f4.} 37. Rc1 {[%emt 0:00:14]} Rd5 {[%emt 0:07:36] [#] Strongly threatening ...f4.} 38. b6 $2 {[%emt 0:01:02]} ({Much worse is} 38. Rc7 Rxb5 39. Rxf7 Rc4 40. Rxa7 f4 41. Bxf4 Rxf4) (38. Kf1) 38... axb6 {[%emt 0:00:14] Black is clearly winning.} 39. Rxb6 {[%emt 0:00:11]} Rd3 {[%emt 0:01:15]} 40. Bf2 {[%emt 0:01:13]} Ra2 {[%emt 0:03:03]} 41. Rc6 {[%emt 0:05:33]} Rdd2 {[%emt 0:00:30]} 42. Be3 {[%emt 0:03:20]} Rxg2+ {[%emt 0:00:59] Weighted Error Value: White=0.67/Black=0.33} 0-1